bitfinex-derivatives/quotes_ETHF0:USTF0_20250614
["timestamp","ask_amount","ask_price","bid_price","bid_amount"]
[1749917405956,0.79395,2517.9,2517.8,4.00178]
[1749917406151,9.2164,2518.2,2517.9,0.79393]
[1749917406455,9.2164,2518.2,2517.8,4.00176]
[1749917406652,0.79393,2518.0,2517.9,0.79395]
[1749917407050,9.2164,2518.2,2518.0,0.7939]
[1749917407351,9.2164,2518.2,2517.9,0.79395]
[1749917407352,0.79391,2518.1,2517.9,0.79395]
[1749917407553,0.79392,2518.0,2517.9,0.79395]
[1749917407949,0.79392,2518.1,2518.0,0.79392]
[1749917408354,0.79389,2518.1,2517.9,0.79392]
[1749917408547,0.79395,2517.9,2517.8,3.2078]
[1749917409858,0.79414,2517.3,2517.2,3.16719805]
[1749917410060,1.99115049,2517.5,2517.0,5.58083805]
[1749917410260,0.00595049,2517.5,2517.0,44.0078]
[1749917410454,0.00595049,2517.5,2517.4,0.79411]
[1749917410657,0.00595049,2517.5,2517.3,0.79412]
[1749917410856,0.80004049,2517.5,2517.4,0.79411]
[1749917411057,0.00595049,2517.5,2517.4,0.79411]
[1749917411354,0.80002049,2517.5,2517.4,0.79411]
[1749917411550,0.00595049,2517.5,2517.1,7.9364]
[1749917411859,0.79413,2517.4,2517.3,0.79412]
[1749917412058,1.28545049,2517.5,2517.0,3.2078]
[1749917412355,0.79415,2517.3,2517.2,0.79415]
[1749917412557,1.28545049,2517.5,2517.0,4.4802]
[1749917412762,0.79416,2517.3,2517.2,0.79416]
[1749917413061,0.79414,2517.3,2517.2,0.79415]
[1749917413258,0.7942,2517.1,2517.0,3.2078]
[1749917413649,0.79425,2517.0,2516.9,0.79426]
[1749917413858,0.79426,2516.9,2516.8,0.79427]
[1749917414058,0.6373,2517.0,2516.9,0.79426]
[1749917414361,1.43155,2517.0,2516.9,0.79426]
[1749917414663,0.6373,2517.0,2516.7,6.59]
[1749917414859,0.79427,2516.9,2516.8,0.79429]
[1749917415363,1.43155,2517.0,2516.7,6.59]
[1749917415561,0.7943,2516.8,2516.7,0.79433]
[1749917415862,1.3408,2516.9,2516.6,3.2078]
[1749917416063,1.43154,2517.0,2516.9,0.79426]
[1749917416251,0.6373,2517.0,2516.9,0.79426]
[1749917416454,1.43153,2517.0,2516.8,0.79427]
[1749917416759,0.79426,2516.9,2516.8,0.79427]
[1749917416960,0.6373,2517.0,2516.8,0.79428]
[1749917417160,0.79426,2516.9,2516.8,0.79428]
[1749917417866,0.6373,2517.0,2516.6,4.00214]
[1749917418258,0.79432,2516.8,2516.7,0.79433]
[1749917418457,0.6373,2517.0,2516.6,3.2078]
[1749917418458,0.79428,2516.9,2516.6,3.2078]
[1749917418666,0.7943,2516.8,2516.7,0.7943]
[1749917418966,0.79429,2516.9,2516.8,0.7943]
[1749917419156,0.6373,2517.0,2516.6,3.2078]
[1749917419359,0.79428,2516.9,2516.7,0.79432]
[1749917419562,0.79428,2516.9,2516.6,3.2078]
[1749917419762,0.6373,2517.0,2516.7,0.79431]
[1749917420061,0.79428,2516.9,2516.5,1.2794]
[1749917420367,3.2078,2516.9,2516.5,1.2794]
[1749917420560,0.7943,2516.8,2516.6,0.79433]
[1749917420762,0.7943,2516.8,2516.4,41.4922]
[1749917420763,3.2078,2516.9,2516.4,0.6922]
[1749917420952,0.79436,2516.7,2516.4,0.6922]
[1749917421157,0.79436,2516.6,2516.5,0.79437]
[1749917421467,4.5489,2516.9,2516.3,0.685]
[1749917421653,0.79437,2516.6,2516.5,0.79438]
[1749917421964,0.79441,2516.5,2516.4,0.79441]
[1749917422166,0.79445,2516.4,2516.3,0.79445]
[1749917422556,11.0829,2516.9,2516.2,3.2078]
[1749917422762,13.06859,2516.9,2516.2,3.2078]
[1749917422964,0.79439,2516.5,2516.4,0.7944]
[1749917423158,0.79442,2516.4,2516.3,0.79443]
[1749917423466,6.534,2516.5,2515.8,5.19431]
[1749917423666,0.6533,2516.3,2515.8,1.98651]
[1749917423965,5.19376,2516.6,2515.7,2.63141]
[1749917423966,3.2078,2516.6,2516.5,0.79439]
[1749917424163,0.79436,2516.6,2516.5,0.79439]
[1749917424467,0.7944,2516.5,2516.4,0.7944]
[1749917424963,6.535,2516.7,2516.3,0.6448]
[1749917425162,0.7944,2516.5,2516.4,0.7944]
[1749917425763,0.79447,2516.3,2516.2,0.79447]
[1749917426059,0.6533,2516.4,2516.0,0.6836]
[1749917426263,1.44774,2516.4,2516.3,0.79445]
[1749917426460,0.79447,2516.3,2516.2,0.79447]
[1749917426771,0.6533,2516.4,2516.3,0.79445]
[1749917427063,1.44772,2516.4,2516.3,0.79445]
[1749917427565,1.44772,2516.4,2515.8,3.2078]
[1749917427566,2.63938,2516.4,2515.8,3.2078]
[1749917427769,0.79457,2516.0,2515.9,0.79457]
[1749917428065,0.00595049,2516.2,2515.6,1.3406]
[1749917428265,0.00595049,2516.2,2516.1,0.79452]
[1749917428465,0.00595049,2516.2,2516.1,4.00232]
[1749917429160,0.6319,2516.7,2516.6,0.79436]
[1749917429871,3.2078,2516.8,2516.7,0.79433]
[1749917430469,0.7943,2516.8,2516.7,0.79433]
[1749917430675,1.45911244,2517.0,2516.9,0.79426]
[1749917430867,0.00596244,2517.0,2516.9,0.79426]
[1749917431068,0.79426,2516.9,2516.8,0.79428]
[1749917432168,0.80021244,2517.0,2516.7,1.3559]
[1749917432372,0.80021244,2517.0,2516.8,0.79427]
[1749917432565,0.80021244,2517.0,2516.9,0.79426]
[1749917432873,0.79426,2516.9,2516.7,1.3559]
[1749917433072,0.80021244,2517.0,2516.8,0.79427]
[1749917433368,0.00596244,2517.0,2516.9,0.79426]
[1749917434165,0.00596244,2517.0,2516.7,1.3559]
[1749917434472,0.00596244,2517.0,2516.6,0.6854]
[1749917434674,0.7943,2516.8,2516.7,0.79431]
[1749917435170,0.79433,2516.7,2516.6,0.6854]
[1749917436066,0.79436,2516.6,2516.5,1.3504]
[1749917437276,0.79442,2516.4,2516.3,0.6243]
[1749917437672,0.79442,2516.4,2516.3,1.41875]
[1749917438176,0.79442,2516.4,2516.3,0.6243]
[1749917440073,0.79445,2516.3,2516.2,7.32948]
[1749917440275,0.79445,2516.3,2516.2,6.535]
[1749917440473,3.2078,2516.6,2516.5,0.79439]
[1749917440664,3.21376244,2517.0,2516.4,5.19383]
[1749917440867,3.21376244,2517.0,2516.9,0.79426]
[1749917441068,1.98567,2516.9,2516.5,2.37303805]
[1749917441272,0.79438,2516.6,2516.5,0.79438]
[1749917441475,0.79431,2516.8,2516.7,0.79431]
[1749917441666,0.79434,2516.7,2516.6,0.79434]
[1749917442573,9.74976244,2517.0,2516.6,1.334]
[1749917442574,3.21376244,2517.0,2516.6,1.334]
[1749917442777,0.79432,2516.8,2516.7,0.79431]
[1749917443275,0.79431,2516.8,2516.7,0.7943]
[1749917444467,3.21376244,2517.0,2516.6,2.82074]
[1749917444674,0.79432,2516.8,2516.7,1.2621]
[1749917446381,0.79432,2516.8,2516.7,2.05643]
[1749917446583,0.79432,2516.8,2516.7,1.2621]
[1749917447878,0.79432,2516.8,2516.7,2.05643]
[1749917448077,0.79432,2516.8,2516.7,1.2621]
[1749917449086,0.79432,2516.8,2516.7,2.05643]
[1749917449383,0.79432,2516.8,2516.7,1.2621]
[1749917449984,0.79432,2516.8,2516.7,2.05643]
[1749917450177,0.79432,2516.8,2516.7,1.2621]
[1749917450684,0.79436,2516.6,2516.5,35.16460805]
[1749917450977,0.79436,2516.6,2516.5,35.63103805]
[1749917451177,0.79439,2516.5,2516.4,27.14003805]
[1749917451382,0.79439,2516.5,2516.4,24.767]
[1749917452177,0.79442,2516.4,2516.3,9.73148805]
[1749917452376,0.79442,2516.4,2516.3,32.12645]
[1749917452779,0.79445,2516.3,2516.2,43.17303805]
[1749917452987,0.79445,2516.3,2516.2,72.12]
[1749917453175,0.79445,2516.3,2516.2,31.32]
[1749917454580,0.79449,2516.2,2516.1,2.37303805]
[1749917454784,5.2746,2516.4,2516.0,2.37303805]
[1749917454981,0.79452,2516.1,2516.0,2.37303805]
[1749917455182,0.79455,2516.0,2515.9,4.53487049]
[1749917455387,0.79455,2516.0,2515.9,28.50930049]
[1749917455587,0.79455,2516.0,2515.9,27.14800049]
[1749917456280,0.79455,2516.0,2515.9,24.76596244]
[1749917456488,0.79455,2516.0,2515.9,25.56054244]
[1749917456689,0.79455,2516.0,2515.9,0.00596244]
[1749917456994,0.79455,2516.0,2515.9,24.76096244]
[1749917457376,0.79455,2516.0,2515.9,25.55554244]
[1749917457786,0.79455,2516.0,2515.9,24.76096244]
[1749917457987,5.2746,2516.4,2515.9,24.76096244]
[1749917458188,0.79452,2516.1,2516.0,0.79452]
[1749917460589,0.79453,2516.1,2516.0,0.79452]
[1749917460790,0.79455,2516.0,2515.9,25.55552244]
[1749917460984,0.79455,2516.0,2515.9,0.80052244]
[1749917461180,0.79455,2516.0,2515.9,0.00596244]
[1749917461793,1.9772,2516.0,2515.4,5.58083805]
[1749917462087,1.9772,2516.0,2515.4,3.2078]
[1749917462088,0.79471,2515.5,2515.4,3.2078]
[1749917462882,0.6552,2515.5,2515.2,24.727]
[1749917463183,0.79477,2515.4,2515.3,0.79477]
[1749917463694,0.6552,2515.5,2515.2,0.79477]
[1749917463992,0.7948,2515.3,2515.2,25.53777]
[1749917464388,0.6552,2515.5,2515.2,25.53777]
[1749917464590,0.6552,2515.5,2515.4,0.79474]
[1749917465187,1.44992,2515.5,2515.4,0.79474]
[1749917465590,0.6552,2515.5,2515.4,0.79474]
[1749917466089,0.79477,2515.3,2515.2,0.79478]
[1749917466491,0.79476,2515.4,2515.3,0.79475]
[1749917466885,3.863,2515.5,2515.1,3.2078]
[1749917467089,0.7948,2515.2,2515.1,4.00261]
[1749917467288,0.7948,2515.2,2515.1,3.2078]
[1749917467598,1.4734,2515.2,2515.1,4.00263]
[1749917467896,0.6786,2515.2,2515.1,4.00263]
[1749917468098,0.6552,2515.5,2515.4,0.79474]
[1749917468990,0.00596244,2515.7,2515.6,0.79467]
[1749917469994,0.00596244,2515.7,2515.6,2.08377]
[1749917470392,1.3662,2516.1,2516.0,0.79455]
[1749917471191,3.2078,2516.2,2516.1,0.79452]
[1749917471586,4.0023,2516.2,2515.9,24.73296244]
[1749917471786,3.2078,2516.2,2516.1,0.79452]
[1749917473197,3.2078,2516.2,2516.1,2.17852]
[1749917474186,0.00596244,2516.4,2516.3,0.79445]
[1749917475095,3.33952,2516.8,2516.7,0.79433]
[1749917475292,4.13382,2516.8,2516.6,0.79434]
[1749917475484,0.79433,2516.7,2516.6,0.79434]
[1749917476589,0.79433,2516.7,2516.5,0.79438]
[1749917477394,0.79433,2516.7,2516.6,0.79436]
[1749917477694,0.13172,2516.8,2516.7,0.79433]
[1749917478298,0.13172,2516.8,2516.7,25.51933]
[1749917479003,0.13172,2516.8,2516.7,24.725]
[1749917479508,0.92602,2516.8,2516.7,24.725]
[1749917480301,0.79439,2516.5,2516.4,0.6304]
[1749917480902,0.79439,2516.5,2516.4,24.723]
[1749917483002,0.84849438,2516.5,2516.4,24.723]
[1749917484503,0.84849438,2516.5,2516.4,26.82822]
[1749917485405,0.84849438,2516.5,2516.4,26.89631268]
[1749917486402,0.05410438,2516.5,2516.4,26.82822]
[1749917487108,0.13172,2516.8,2516.7,0.79433]
[1749917487402,0.13172,2516.8,2516.7,25.51433]
[1749917487795,0.13172,2516.8,2516.7,32.05233]
[1749917489101,0.92602,2516.8,2516.7,72.058]
[1749917489302,0.13172,2516.8,2516.7,72.058]
[1749917489506,0.13172,2516.8,2516.7,72.85233]
[1749917490708,0.13172,2516.8,2516.7,72.058]
[1749917490911,0.92602,2516.8,2516.7,72.058]
[1749917492008,0.92602,2516.8,2516.7,72.85033]
[1749917492211,0.13172,2516.8,2516.7,72.85033]
[1749917492407,0.92602,2516.8,2516.7,72.85033]
[1749917493109,0.13172,2516.8,2516.7,72.85033]
[1749917493703,3.2078,2517.6,2516.9,1.98562]
[1749917493901,3.2078,2517.6,2517.5,0.79407]
[1749917494110,0.79403,2517.7,2517.5,24.716]
[1749917494311,4.00184,2517.6,2517.5,24.716]
[1749917494513,3.2078,2517.6,2517.5,25.51006]
[1749917495418,0.79411,2517.4,2517.3,0.00596244]
[1749917496609,1.363,2517.5,2517.3,0.00596244]
[1749917496811,2.15708,2517.5,2517.4,0.79411]
[1749917497207,1.363,2517.5,2517.3,1.45958244]
[1749917497409,2.15709,2517.5,2517.4,0.79411]
[1749917497713,1.363,2517.5,2517.3,0.66546244]
[1749917498010,1.46629,2517.5,2517.4,0.79411]
[1749917499415,0.6722,2517.5,2517.4,0.79411]
[1749917499613,1.46627,2517.5,2517.4,0.79411]
[1749917501114,1.46627,2517.5,2517.3,1.45957244]
[1749917501317,1.4663,2517.5,2517.3,1.45957244]
[1749917501517,0.79411,2517.4,2517.3,1.45957244]
[1749917501723,0.79411,2517.4,2517.3,0.66546244]
[1749917501910,0.79411,2517.4,2517.3,0.00596244]
[1749917502110,0.79411,2517.4,2517.3,24.71596244]
[1749917503620,0.79411,2517.4,2517.3,0.00596244]
[1749917503916,2.14591,2517.4,2517.3,0.00596244]
[1749917507616,0.79411,2517.4,2517.3,0.00596244]
[1749917508120,2.15511,2517.4,2517.3,0.00596244]
[1749917511128,0.79411,2517.4,2517.3,0.00596244]
[1749917512122,2.16261,2517.4,2517.3,0.00596244]
[1749917514924,0.79436,2516.6,2516.5,2.37303805]
[1749917515122,1.98576,2516.8,2516.4,8.90803805]
[1749917515123,5.19356,2516.8,2516.4,8.90803805]
[1749917515424,2.12399,2516.5,2516.4,6.535]
[1749917515819,2.12399,2516.5,2516.4,7.32942]
[1749917516325,2.12399,2516.5,2516.4,6.535]
[1749917517021,0.79442,2516.4,2516.3,24.028]
[1749917517222,1.3296,2516.5,2516.4,0.79442]
[1749917517724,1.3296,2516.5,2516.3,59.01163805]
[1749917517931,0.79442,2516.4,2516.3,56.6386]
[1749917519318,3.2078,2516.8,2516.7,0.79433]
[1749917519631,0.79421,2517.1,2517.0,0.79423]
[1749917520320,0.656,2517.3,2516.8,2.0001]
[1749917520521,3.2078,2517.6,2517.2,0.79417]
[1749917520716,4.5061,2517.6,2517.2,0.79417]
[1749917520929,0.79416,2517.3,2517.1,32.04218]
[1749917521430,0.79416,2517.3,2517.2,0.79417]
[1749917521631,0.79417,2517.2,2517.1,32.04218]
[1749917521829,0.79415,2517.3,2517.2,0.79416]
[1749917522030,0.7941,2517.5,2517.4,0.79409]
[1749917522230,0.79413,2517.4,2517.3,0.79413]
[1749917522825,0.79413,2517.4,2517.3,0.86222268]
[1749917523030,0.79413,2517.4,2517.3,0.06809268]
[1749917523332,0.79413,2517.4,2517.3,24.78009268]
[1749917523924,0.79413,2517.4,2517.3,24.712]
[1749917524133,0.7941,2517.5,2517.4,0.79409]
[1749917524536,5.30015,2517.6,2517.5,0.79407]
[1749917524831,4.63865,2517.6,2517.5,0.79407]
[1749917525533,3.8446,2517.6,2517.5,0.79407]
[1749917525723,4.00184,2517.6,2517.4,1.3659]
[1749917526030,0.79408,2517.5,2517.4,2.16]
[1749917526229,3.2078,2517.6,2517.4,2.16]
[1749917526433,0.79408,2517.5,2517.4,2.16]
[1749917526630,0.79408,2517.5,2517.4,1.3659]
[1749917527127,3.2078,2517.6,2517.4,1.3659]
[1749917527431,4.00186,2517.6,2517.4,2.15999]
[1749917527732,0.79407,2517.5,2517.4,2.15999]
[1749917527924,3.2078,2517.6,2517.5,0.79407]
[1749917528126,3.2078,2517.6,2517.5,2.12547]
[1749917528428,4.00184,2517.6,2517.5,2.12547]
[1749917528823,3.2078,2517.6,2517.5,2.12547]
[1749917529432,4.00184,2517.6,2517.5,2.12547]
[1749917530022,4.00184,2517.6,2517.5,1.3314]
[1749917530228,4.00184,2517.6,2517.5,26.0394]
[1749917532134,0.79411,2517.4,2517.3,3.02793805]
[1749917532328,0.79411,2517.4,2517.3,34.26893805]
[1749917532530,0.79411,2517.5,2517.3,34.26893805]
[1749917532731,0.79411,2517.5,2517.4,1.336]
[1749917532933,0.79411,2517.5,2517.4,2.13011]
[1749917533534,0.79411,2517.5,2517.4,32.577]
[1749917534635,0.79411,2517.5,2517.4,1.336]
[1749917534934,0.79411,2517.4,2517.3,7.1899]
[1749917535232,0.79411,2517.4,2517.3,31.8949]
[1749917535431,0.79411,2517.4,2517.3,1.44904]
[1749917535630,0.79411,2517.4,2517.3,32.68804]
[1749917538836,0.79411,2517.4,2517.3,7.1889]
[1749917539134,0.79411,2517.4,2517.3,31.8929]
[1749917539331,0.79411,2517.4,2517.3,32.68704]
[1749917540425,1.4195,2517.5,2517.4,0.79411]
[1749917540725,0.79411,2517.4,2517.3,32.68701]
[1749917541127,0.6254,2517.5,2517.4,0.79411]
[1749917541325,0.79411,2517.4,2517.3,32.68702]
[1749917542134,1.4195,2517.5,2517.4,0.79411]
[1749917542337,0.79411,2517.4,2517.3,32.68702]
[1749917543130,0.79411,2517.4,2517.3,31.8929]
[1749917543528,0.79411,2517.4,2517.3,32.68704]
[1749917543736,0.79411,2517.4,2517.3,32.03214]
[1749917546539,0.79411,2517.4,2517.3,32.02614]
[1749917547037,0.79411,2517.4,2517.3,31.232]
[1749917547236,0.79411,2517.4,2517.3,32.02614]
[1749917548142,0.79411,2517.4,2517.3,34.39917805]
[1749917549241,0.79411,2517.4,2517.3,31.232]
[1749917549440,0.79411,2517.4,2517.3,32.02614]
[1749917549844,0.6254,2517.5,2517.1,3.14826244]
[1749917550139,0.79423,2517.0,2516.9,6.531]
[1749917550337,0.79423,2517.0,2516.9,33.61084391]
[1749917550734,4.00203,2517.0,2516.9,33.61084391]
[1749917551036,0.79426,2516.9,2516.8,2.37984391]
[1749917551338,0.79433,2516.7,2516.6,6.531]
[1749917551539,0.79433,2516.7,2516.6,31.23]
[1749917552443,0.79439,2516.5,2516.4,3.2078]
[1749917553044,0.79439,2516.5,2516.4,24.699]
[1749917553240,0.6716,2516.5,2516.4,25.49342]
[1749917553439,0.79431,2516.8,2516.4,26.68503]
[1749917553635,0.79431,2516.8,2516.7,0.79431]
[1749917553831,0.79431,2516.8,2516.7,25.49631]
[1749917554642,0.79427,2516.9,2516.8,0.79428]
[1749917554832,0.79427,2516.9,2516.8,25.49628]
[1749917555031,4.00207,2516.9,2516.8,24.702]
[1749917555840,0.79425,2517.0,2516.8,24.702]
[1749917556143,0.79425,2517.0,2516.9,0.79426]
[1749917556843,4.5654,2517.2,2516.8,24.702]
[1749917557043,0.79421,2517.1,2517.0,0.79421]
[1749917557243,0.79421,2517.1,2517.0,25.49621]
[1749917557443,3.2078,2517.2,2517.1,0.7942]
[1749917557645,3.2078,2517.2,2517.1,2.0731]
[1749917557847,3.2078,2517.2,2517.1,2.7476]
[1749917558243,4.00197,2517.2,2517.1,1.9534]
[1749917558444,0.79417,2517.2,2517.1,1.9534]
[1749917558640,0.79417,2517.2,2517.1,2.7476]
[1749917560050,0.79416,2517.3,2517.1,2.7476]
[1749917560240,0.79416,2517.3,2517.2,24.701]
[1749917562546,3.2078,2517.3,2516.9,2.37984391]
[1749917562738,6.49001,2517.3,2517.0,24.699]
[1749917562946,0.7942,2517.1,2517.0,24.699]
[1749917563155,1.98543,2517.2,2516.8,10.27114391]
[1749917563350,0.79423,2517.0,2516.9,24.699]
[1749917563839,4.00203,2517.0,2516.9,24.699]
[1749917565547,4.00203,2517.0,2516.9,25.49326]
[1749917565754,4.00203,2517.0,2516.9,24.699]
[1749917567846,0.79426,2516.9,2516.8,24.698]
[1749917568045,1.48486,2516.9,2516.8,24.698]
[1749917568745,1.48486,2516.9,2516.8,25.4923]
[1749917568946,1.48486,2516.9,2516.8,24.698]
[1749917569155,1.48486,2516.9,2516.8,25.4923]
[1749917569453,1.48486,2516.9,2516.8,24.698]
[1749917569658,1.98576,2516.8,2516.5,26.40384391]
[1749917569954,0.79433,2516.7,2516.6,24.698]
[1749917570655,0.79439,2516.5,2516.4,6.532]
[1749917570860,0.79439,2516.5,2516.4,31.229]
[1749917571546,0.79442,2516.4,2516.3,7.32645]
[1749917571756,0.79442,2516.4,2516.3,0.79445]
[1749917571952,0.79442,2516.4,2516.3,6.532]
[1749917572148,0.79442,2516.4,2516.3,31.23]
[1749917572753,0.79442,2516.4,2516.3,32.02445]
[1749917572956,0.79442,2516.4,2516.3,0.79445]
[1749917573457,0.79445,2516.3,2516.2,4.00824244]
[1749917573645,0.79445,2516.3,2516.2,0.80044244]
[1749917573845,0.79445,2516.3,2516.2,25.49844244]
[1749917575354,0.79445,2516.3,2516.2,24.70396244]
[1749917577045,0.79445,2516.3,2516.2,24.70496244]
[1749917577246,0.79445,2516.3,2516.2,0.00596244]
[1749917577457,0.79445,2516.3,2516.2,24.70496244]
[1749917577647,1.42445,2516.3,2516.2,24.70496244]
[1749917578756,1.42445,2516.3,2516.2,24.70396244]
[1749917579852,1.42445,2516.3,2516.2,0.00596244]
[1749917580054,1.42445,2516.3,2516.2,24.70396244]
[1749917580558,1.42445,2516.3,2516.2,0.00596244]
[1749917580758,0.79461,2515.8,2515.7,2.37984391]
[1749917580954,0.79458,2516.0,2515.9,0.79456]
[1749917581163,0.6905,2516.0,2515.9,0.79456]
[1749917581462,0.00596244,2516.5,2516.4,0.79442]
[1749917581851,0.00596244,2516.5,2516.4,2.07092]
[1749917582266,0.00596244,2516.5,2516.3,0.79444]
[1749917582559,0.00596244,2516.5,2516.4,24.698]
[1749917582758,0.00596244,2516.5,2516.4,25.49242]
[1749917584861,0.63346244,2516.5,2516.4,25.49242]
[1749917585463,1.42785244,2516.5,2516.4,24.698]
[1749917585659,1.42785244,2516.5,2516.4,0.79442]
[1749917588860,0.79442,2516.4,2516.3,25.49143]
[1749917589058,4.00222,2516.4,2516.3,25.49143]
[1749917589261,0.79445,2516.3,2516.2,0.00596244]
[1749917589459,2.76565,2516.3,2516.2,0.00596244]
[1749917591458,2.76565,2516.3,2516.2,0.80045244]
[1749917591660,0.63346244,2516.5,2516.2,0.00596244]
[1749917591861,0.63346244,2516.5,2516.4,0.79442]
[1749917592265,1.42785244,2516.5,2516.4,0.79442]
[1749917596671,0.63346244,2516.5,2516.4,0.79442]
[1749917596967,1.42785244,2516.5,2516.4,0.79442]
[1749917600071,1.42785244,2516.5,2516.4,0.86251268]
[1749917600272,1.42785244,2516.5,2516.4,0.06809268]
[1749917600471,2.41115279,2516.5,2516.4,0.06809268]
[1749917600969,2.41115279,2516.5,2516.4,0.79442]
[1749917601174,1.42785244,2516.5,2516.4,0.79442]
[1749917601469,0.00596244,2516.5,2516.4,0.79442]
[1749917601676,0.00596244,2516.5,2516.4,3.16703048]
[1749917601972,0.00596244,2516.5,2516.4,0.79442]
[1749917602164,0.00596244,2516.5,2516.4,0.86251268]
[1749917602364,0.00596244,2516.5,2516.4,3.24186013]
[1749917602564,0.00596244,2516.5,2516.4,0.86251268]
[1749917603073,0.00596244,2516.5,2516.4,0.79442]
[1749917603574,0.79442,2516.4,2516.3,28.32222344]
[1749917603773,0.79442,2516.4,2516.3,2.37912344]
[1749917604069,0.79445,2516.3,2516.2,0.00596244]
[1749917604275,3.10555653,2516.3,2516.2,0.00596244]
[1749917604973,1.98631,2516.1,2515.7,2.37912344]
[1749917605167,0.79464,2515.7,2515.6,0.6357]
[1749917606572,0.79467,2515.6,2515.5,31.217]
[1749917606975,0.79471,2515.5,2515.4,12.10692344]
[1749917607170,0.79471,2515.5,2515.4,34.4178]
[1749917607873,0.79471,2515.5,2515.4,31.21]
[1749917608074,0.79471,2515.5,2515.4,6.52]
[1749917608474,5.19461,2515.5,2515.1,5.58692344]
[1749917608670,0.79483,2515.1,2515.0,2.37912344]
[1749917608974,0.79486,2515.0,2514.9,43.17912344]
[1749917609175,3.2078,2515.1,2514.7,2.37912344]
[1749917609370,0.79493,2514.8,2514.7,24.689]
[1749917609563,0.79493,2514.8,2514.7,25.9654]
[1749917610171,0.79493,2514.8,2514.7,1.2764]
[1749917610482,0.79496,2514.7,2514.6,31.8975]
[1749917610771,0.00596244,2515.2,2514.6,33.1739]
[1749917610974,0.00596244,2515.2,2514.6,35.55302344]
[1749917611368,3.21376244,2515.2,2514.7,0.79494]
[1749917611570,0.79493,2514.9,2514.8,1.2993]
[1749917612076,1.98709,2515.1,2514.6,0.6855]
[1749917612380,0.79496,2514.7,2514.6,0.6855]
[1749917612680,0.79499,2514.6,2514.5,27.8988]
[1749917612982,0.79504,2514.5,2514.3,7.31607]
[1749917613177,0.79504,2514.5,2514.4,25.48505]
[1749917613378,0.6686,2514.6,2514.4,25.48505]
[1749917613584,1.46362,2514.6,2514.4,26.78435]
[1749917613788,0.79502,2514.5,2514.4,26.78435]
[1749917613975,0.6892,2514.8,2514.4,25.9893]
[1749917614178,0.6686,2515.0,2514.7,0.79496]
[1749917614379,0.7949,2514.9,2514.5,24.693]
[1749917614580,0.6686,2515.0,2514.7,0.79493]
[1749917614783,0.79493,2514.8,2514.7,0.79493]
[1749917615084,0.79496,2514.7,2514.6,0.6476]
[1749917615387,0.6686,2515.0,2514.4,7.31702]
[1749917615388,0.79502,2514.5,2514.4,7.31702]
[1749917615577,0.79496,2514.7,2514.6,24.693]
[1749917615876,0.79496,2514.7,2514.6,25.48799]
[1749917616178,3.2078,2514.9,2514.6,25.48799]
[1749917616179,0.79495,2514.8,2514.7,0.79496]
[1749917616384,0.79495,2514.8,2514.6,24.76109268]
[1749917616682,0.79496,2514.7,2514.6,24.76109268]
[1749917616881,0.6686,2515.0,2514.9,0.7949]
[1749917617072,0.6892,2515.1,2514.9,24.694]
[1749917617274,0.6892,2515.1,2514.9,25.4889]
[1749917617275,0.79488,2515.0,2514.9,25.4889]
[1749917617980,0.79488,2515.0,2514.9,24.694]
[1749917618187,0.79493,2514.8,2514.7,1.44254]
[1749917618481,0.79499,2514.6,2514.5,2.0936]
[1749917618684,3.8777,2514.9,2514.3,1.46868]
[1749917618685,0.79505,2514.4,2514.3,1.46868]
[1749917618880,0.79505,2514.4,2514.3,25.3666]
[1749917619381,0.79505,2514.4,2514.3,26.16169]
[1749917619582,0.79504,2514.5,2514.3,25.3666]
[1749917619779,3.8777,2514.9,2514.3,25.3666]
[1749917619983,0.79499,2514.6,2514.5,0.795]
[1749917621284,5.86498,2514.9,2514.4,2.05212]
[1749917621285,0.79502,2514.5,2514.4,2.05212]
[1749917621477,0.79502,2514.5,2514.4,26.74612]
[1749917621681,3.8777,2514.9,2514.6,0.79498]
[1749917621891,0.79499,2514.7,2514.6,0.79498]
[1749917622087,3.8777,2514.9,2514.4,25.9511]
[1749917622280,0.7949,2514.9,2514.8,0.86302268]
[1749917622484,2.17735,2515.1,2515.0,0.79486]
[1749917622786,0.79486,2515.0,2514.9,0.6576]
[1749917623688,2.17735,2515.1,2515.0,0.79486]
[1749917623887,0.79486,2515.0,2514.9,0.6576]
[1749917624092,0.79486,2515.0,2514.9,1.45247]
[1749917624686,2.17735,2515.1,2514.9,0.6576]
[1749917624892,0.79486,2515.0,2514.9,1.45249]
[1749917625090,1.3825,2515.1,2514.9,0.6576]
[1749917625290,0.79486,2515.0,2514.9,1.45248]
[1749917625687,1.3825,2515.1,2515.0,0.79486]
[1749917625891,2.17733,2515.1,2515.0,0.79486]
[1749917626078,0.79486,2515.0,2514.9,1.45248]
[1749917626893,0.00596244,2515.2,2515.1,0.79483]
[1749917627392,0.80076244,2515.2,2515.1,0.79483]
[1749917627591,0.00596244,2515.2,2515.1,0.79483]
[1749917628483,0.80076244,2515.2,2515.1,0.79483]
[1749917628693,0.80079244,2515.2,2515.1,0.79483]
[1749917628990,0.79486,2515.1,2515.0,0.79485]
[1749917630584,0.79486,2515.1,2515.0,0.86294268]
[1749917630785,0.80079244,2515.2,2515.1,0.79483]
[1749917631594,0.79483,2515.1,2515.0,0.86293268]
[1749917631799,0.00596244,2515.2,2515.1,0.79483]
[1749917632390,0.80076244,2515.2,2515.1,0.79483]
[1749917632893,0.79483,2515.1,2515.0,0.86293268]
[1749917633082,0.79483,2515.1,2515.0,25.55393268]
[1749917636997,0.79483,2515.1,2515.0,24.75909268]